fUST/lending_fUST_20250612
["ID","MTS","AMOUNT","RATE_DAILY","PERIOD"]
[365415972,1749660642011,-549.0822002,0.00023173,2]
[365415974,1749660642020,-500.0,0.00023173,2]
[365415975,1749660642029,-500.0,0.00023173,2]
[365415977,1749660642039,-500.0,0.00023173,2]
[365415979,1749660642048,-500.0,0.00023173,2]
[365415981,1749660642057,-505.53938396,0.00023173,2]
[365415983,1749660642066,-500.0,0.00023173,2]
[365415985,1749660642075,-500.0,0.00023173,2]
[365415987,1749660642084,-600.0,0.00023173,2]
[365415989,1749660642093,-500.4986817,0.00023173,2]
[365415991,1749660642102,-500.0,0.00023173,2]
[365415993,1749660642112,-304.63792749,0.00023173,2]
[365415995,1749660642122,-500.0,0.00023173,2]
[365415997,1749660642131,-500.0,0.00023173,2]
[365415999,1749660642140,-500.0,0.00023173,2]
[365416001,1749660642149,-500.0,0.00023173,2]
[365416003,1749660642159,-500.0,0.00023173,2]
[365416005,1749660642167,-500.0,0.00023173,2]
[365416007,1749660642176,-500.0,0.00023173,2]
[365416009,1749660642186,-500.0,0.00023173,2]
[365416011,1749660642195,-1447.39596437,0.00023176,8]
[365416014,1749660642206,-151.0,0.00023196,7]
[365416016,1749660642216,-151.0,0.00023196,7]
[365416018,1749660642226,-151.0,0.00023196,7]
[365416020,1749660642235,-151.0,0.00023196,7]
[365416022,1749660642244,-151.0,0.00023196,7]
[365416024,1749660642253,-151.0,0.00023196,7]
[365416026,1749660642262,-151.0,0.00023196,7]
[365416027,1749660642271,-151.0,0.00023196,7]
[365416030,1749660642281,-287.077914,0.00023196,7]
[365416031,1749660642293,-182.116498,0.00023196,7]
[365416033,1749660642303,-143676.71531983,0.00023196,2]
[365416035,1749660642312,-151.0,0.00023198,7]
[365416037,1749660642321,-151.0,0.00023198,7]
[365416039,1749660642330,-151.0,0.00023198,7]
[365416041,1749660642341,-151.0,0.00023198,7]
[365416043,1749660642350,-143961.67,0.000232,7]
[365416046,1749660642360,-151.0,0.000232,7]
[365416048,1749660642370,-151.0,0.000232,7]
[365416050,1749660642379,-151.0,0.000232,7]
[365416052,1749660642389,-153.413201,0.000232,7]
[365416054,1749660642398,-151.0,0.000232,7]
[365416056,1749660642408,-151.0,0.000232,7]
[365416057,1749660642416,-151.0,0.000232,7]
[365416059,1749660642426,-151.0,0.000232,7]
[365416061,1749660642434,-151.0,0.000232,7]
[365416063,1749660642444,-160.0,0.000232,7]
[365416065,1749660642455,-151.0,0.000232,7]
[365416068,1749660642464,-151.0,0.000232,7]
[365416070,1749660642473,-287.0,0.00023219,2]
[365416072,1749660642483,-2146.45,0.00023226,2]
[365416074,1749660642492,-511.72404302,0.00023273,2]
[365416076,1749660642501,-500.0,0.00023273,2]
[365416078,1749660642510,-500.0,0.00023273,2]
[365416080,1749660642519,-503.00566977,0.00023273,2]
[365416092,1749660642621,-600.0,0.0002328,2]
[365416094,1749660642631,-490.81818418,0.00023286,2]
[365416096,1749660642640,-151.0,0.00023287,7]
[365416098,1749660642649,-116.28270857,0.00023287,7]
[365418470,1749660831371,1000.0,0.00024,120]
[365418475,1749661388464,165.4131,0.00013699,2]
[365418478,1749661453125,5000.0,0.00024955,60]
[365418480,1749661526392,10000.0,0.00024955,60]
[365418509,1749661658038,10000.0,0.00024955,60]
[365418510,1749661737432,10000.0,0.00024956,60]
[365418511,1749661816101,1000.0,0.00018,2]
[365418563,1749661832797,-170.49281,0.00019208,2]
[365418565,1749661832807,-684.90719,0.00020058,2]
[365418566,1749661832819,-238.4846824,0.00020058,2]
[365418567,1749661832828,-313.34585442,0.00020059,2]
[365419406,1749661842254,-610.04601798,0.00020059,2]
[365419408,1749661842265,-923.3918724,0.00020061,2]
[365419410,1749661842275,-923.3918724,0.00020062,2]
[365419412,1749661842285,-691.50003217,0.00020063,2]
[365419574,1749661843791,-231.89184023,0.00020063,2]
[365419577,1749661843801,-300.0,0.00020145,2]
[365419578,1749661843811,-41.92815977,0.00020145,2]
[365419583,1749661843844,-258.07184023,0.00020145,2]
[365419585,1749661843854,-805.03692695,0.00020146,2]
[365421617,1749662554855,164.935764,0.00013699,2]
[365421647,1749662923516,2180.10302993,0.00024966,120]
[365421688,1749663031908,-300.0,0.00019148,2]
[365421690,1749663031918,-300.0,0.00019148,2]
[365421692,1749663031928,-444.70434804,0.00019149,2]
[365421909,1749663037869,-13002.70347726,0.00019149,2]
[365421911,1749663037878,-547.83024624,0.00019177,4]
[365421912,1749663037888,-11707.90566658,0.00019292,2]
[365421913,1749663037897,-1901.0374758,0.00019301,2]
[365421914,1749663037907,-479.07022859,0.00019302,2]
[365421915,1749663037916,-500.0,0.00019303,2]
[365421916,1749663037925,-500.0,0.00019303,2]
[365421917,1749663037934,-500.0,0.00019303,2]
[365421918,1749663037943,-500.0,0.00019303,2]
[365421919,1749663037952,-500.0,0.00019303,2]
[365421920,1749663037962,-500.0,0.00019303,2]
[365421921,1749663037970,-500.0,0.00019303,2]
[365421922,1749663037979,-500.0,0.00019303,2]
[365421923,1749663037988,-500.0,0.00019303,2]
[365421924,1749663037997,-500.0,0.00019303,2]
[365421925,1749663038006,-500.0,0.00019303,2]
[365421926,1749663038015,-197.49475222,0.00019303,2]
[365421927,1749663038024,-321.02745212,0.00019303,2]
[365421928,1749663038033,-500.0,0.00019303,2]
[365421929,1749663038042,-174.61986399,0.00019303,2]
[365421930,1749663038051,-500.0,0.00019303,2]
[365421931,1749663038060,-500.0,0.00019303,2]
[365421932,1749663038069,-500.0,0.00019303,2]
[365421933,1749663038079,-500.0,0.00019303,2]
[365421934,1749663038088,-500.0,0.00019303,2]
[365421935,1749663038100,-500.0,0.00019303,2]
[365421936,1749663038109,-500.0,0.00019303,2]
[365421938,1749663038118,-500.0,0.00019303,2]
[365421940,1749663038126,-500.0,0.00019303,2]
[365421942,1749663038136,-500.0,0.00019303,2]
[365421944,1749663038145,-500.0,0.00019303,2]
[365421947,1749663038154,-500.0,0.00019303,2]
[365421949,1749663038174,-500.0,0.00019303,2]
[365421951,1749663038184,-500.0,0.00019303,2]
[365421953,1749663038193,-24900.0,0.00019304,2]
[365421955,1749663038203,-170.49281,0.00019689,2]
[365421957,1749663038213,-594.83,0.00020006,2]
[365421959,1749663038222,-1565.88705001,0.000203,3]
[365421962,1749663038232,-1565.88704996,0.000203,3]
[365421964,1749663038242,-1565.88704996,0.000203,3]
[365421966,1749663038252,-1565.88704996,0.00020417,3]
[365421968,1749663038262,-219.74,0.00020472,2]
[365421970,1749663038271,-6192.30996422,0.00020472,2]
[365421972,1749663038283,-284.31609293,0.00020554,2]
[365421974,1749663038292,-1565.88704996,0.0002059,3]
[365421976,1749663038302,-1565.88704996,0.00020762,3]
[365421978,1749663038312,-500.0,0.00020849,2]
[365421980,1749663038322,-176.8752352,0.00020849,2]
[365421982,1749663038332,-158.7816813,0.00020849,2]
[365421984,1749663038341,-153.0,0.00020849,2]
[365421986,1749663038351,-573.4653004,0.00020849,2]
[365421988,1749663038360,-153.0,0.00020849,2]
[365421990,1749663038370,-158.7816813,0.00020849,2]
[365421993,1749663038379,-573.4653004,0.00020849,2]
[365421995,1749663038389,-176.8752352,0.00020849,2]
[365421997,1749663038399,-153.0,0.00020849,2]
[365421999,1749663038408,-176.8752352,0.00020849,2]
[365422001,1749663038418,-573.4653004,0.00020849,2]
[365422003,1749663038427,-158.7816813,0.00020849,2]
[365422005,1749663038437,-158.7816813,0.00020849,2]
[365422007,1749663038447,-176.8752352,0.00020849,2]
[365422009,1749663038456,-573.4653004,0.00020849,2]
[365422011,1749663038466,-153.0,0.00020849,2]
[365422013,1749663038475,-153.0,0.00020849,2]
[365422015,1749663038485,-573.4653004,0.00020849,2]
[365422017,1749663038494,-158.7816813,0.00020849,2]
[365422019,1749663038503,-176.8752352,0.00020849,2]
[365422021,1749663038513,-420.0,0.00020868,2]
[365422023,1749663038522,-420.0,0.00020868,2]
[365422025,1749663038536,-1565.88704996,0.00020934,4]
[365422027,1749663038545,-500.0,0.00020954,2]
[365422029,1749663038555,-1189.65,0.00020958,2]
[365422031,1749663038564,-5057.46973144,0.0002099,2]
[365422033,1749663038574,-1000.0,0.00021,21]
[365422036,1749663038583,-500.0,0.00021082,2]
[365422038,1749663038592,-265.73935326,0.00021082,2]
[365422040,1749663038602,-500.0,0.00021082,2]
[365422042,1749663038611,-500.0,0.00021082,2]
[365422044,1749663038621,-500.0,0.00021082,2]
[365422045,1749663038630,-500.0,0.00021082,2]
[365422047,1749663038639,-500.0,0.00021082,2]
[365422049,1749663038648,-500.0,0.00021082,2]
[365422051,1749663038657,-6441.0,0.00021094,5]
[365422053,1749663038667,-460.0,0.00021095,4]
[365422055,1749663038676,-460.0,0.00021095,4]
[365422057,1749663038686,-526.25,0.00021095,2]
[365422059,1749663038696,-296.54173381,0.00021095,4]
[365422061,1749663038706,-440.0,0.00021095,4]
[365422063,1749663038715,-426.53492805,0.00021095,2]
[365422065,1749663038724,-373.58429101,0.00021095,4]
[365422066,1749663038734,-460.0,0.00021095,4]
[365422067,1749663038743,-460.0,0.00021095,4]
[365422068,1749663038753,-460.0,0.00021095,4]
[365422069,1749663038762,-460.0,0.00021095,4]
[365422071,1749663038771,-460.0,0.00021095,4]
[365422073,1749663038784,-500.0,0.00021095,2]
[365422075,1749663038794,-500.0,0.00021095,2]
[365422076,1749663038803,-523.66,0.00021095,4]
[365422077,1749663038813,-460.0,0.00021095,4]
[365422078,1749663038822,-151.0,0.00021095,2]
[365422079,1749663038832,-151.0,0.00021095,2]
[365422080,1749663038842,-300.28477608,0.00021095,2]
[365422081,1749663038852,-500.0,0.00021095,2]
[365422083,1749663038862,-460.0,0.00021095,4]
[365422085,1749663038872,-460.0,0.00021095,4]
[365422086,1749663038881,-409.92706772,0.00021095,4]
[365422087,1749663038891,-460.0,0.00021095,4]
[365422088,1749663038900,-460.0,0.00021095,4]
[365422089,1749663038910,-460.0,0.00021095,4]
[365422090,1749663038919,-460.0,0.00021095,4]
[365422092,1749663038929,-460.0,0.00021095,4]
[365422093,1749663038938,-191.74142049,0.00021095,4]
[365422096,1749663038948,-460.0,0.00021095,4]
[365422098,1749663038958,-460.0,0.00021095,4]
[365422100,1749663038968,-1254.46,0.00021095,4]
[365422102,1749663038977,-460.0,0.00021095,4]
[365422104,1749663038986,-460.0,0.00021095,4]
[365422106,1749663038995,-509.8947904,0.00021095,4]
[365422107,1749663039005,-460.0,0.00021095,4]
[365422110,1749663039014,-467.83,0.00021095,4]
[365422111,1749663039023,-1232.68,0.00021095,4]
[365422112,1749663039034,-460.0,0.00021095,4]
[365422113,1749663039043,-460.0,0.00021095,4]
[365422114,1749663039053,-460.0,0.00021095,4]
[365422115,1749663039063,-460.0,0.00021095,4]
[365422116,1749663039072,-460.0,0.00021095,4]
[365422117,1749663039082,-460.0,0.00021095,4]
[365422118,1749663039091,-460.0,0.00021095,4]
[365422119,1749663039103,-460.0,0.00021095,4]
[365422120,1749663039112,-420.0,0.00021095,4]
[365422121,1749663039122,-460.0,0.00021095,4]
[365422122,1749663039130,-575.54,0.00021095,4]
[365422123,1749663039140,-460.0,0.00021095,4]
[365422124,1749663039150,-478.38,0.00021095,4]
[365422125,1749663039159,-460.0,0.00021095,4]
[365422126,1749663039168,-460.0,0.00021095,4]
[365422127,1749663039178,-234.63043012,0.00021095,4]
[365422128,1749663039188,-505.06,0.00021095,4]
[365422129,1749663039198,-460.0,0.00021095,4]
[365422130,1749663039207,-386.18955849,0.00021095,4]
[365422131,1749663039216,-460.0,0.00021095,4]
[365422132,1749663039226,-1615.48,0.00021095,4]
[365422133,1749663039236,-460.0,0.00021095,4]
[365422134,1749663039245,-460.0,0.00021095,4]
[365422135,1749663039254,-460.0,0.00021095,4]
[365422136,1749663039265,-460.0,0.00021095,4]
[365422137,1749663039275,-460.0,0.00021095,4]
[365422138,1749663039284,-460.0,0.00021095,4]
[365422139,1749663039294,-460.0,0.00021095,4]
[365422140,1749663039303,-460.0,0.00021095,4]
[365422141,1749663039312,-460.0,0.00021095,4]
[365422142,1749663039322,-460.0,0.00021095,4]
[365422143,1749663039331,-460.0,0.00021095,4]
[365422144,1749663039340,-1431.3,0.00021095,4]
[365422145,1749663039349,-180.10970981,0.00021095,4]
[365422146,1749663039358,-460.0,0.00021095,4]
[365422147,1749663039367,-1464.09,0.00021095,4]
[365422148,1749663039377,-460.0,0.00021095,4]
[365422149,1749663039386,-460.0,0.00021095,4]
[365422150,1749663039395,-2475.86,0.00021095,4]
[365422151,1749663039404,-460.0,0.00021095,4]
[365422152,1749663039413,-1330.82,0.00021095,4]
[365422153,1749663039422,-460.0,0.00021095,4]
[365422154,1749663039431,-151.73298142,0.00021095,4]
[365422155,1749663039440,-460.0,0.00021095,4]
[365422156,1749663039449,-151.0,0.00021095,4]
[365422157,1749663039459,-151.0,0.00021095,2]
[365422158,1749663039469,-460.0,0.00021095,4]
[365422159,1749663039478,-204.89201148,0.00021095,4]
[365422160,1749663039487,-460.0,0.00021095,4]
[365422161,1749663039496,-460.0,0.00021095,4]
[365422162,1749663039505,-460.0,0.00021095,2]
[365422163,1749663039514,-460.0,0.00021095,4]
[365422164,1749663039524,-460.0,0.00021095,4]
[365422165,1749663039534,-460.0,0.00021095,4]
[365422166,1749663039543,-460.0,0.00021095,4]
[365422167,1749663039554,-984.08,0.00021095,4]
[365422168,1749663039564,-1255.76,0.00021095,4]
[365422170,1749663039574,-460.0,0.00021095,4]
[365422172,1749663039583,-785.1,0.000211,2]
[365422174,1749663039593,-1565.88704996,0.00021107,4]
[365422176,1749663039602,-500.42496741,0.00021122,2]
[365422178,1749663039612,-500.0,0.00021122,2]
[365422180,1749663039622,-151.0,0.00021122,2]
[365422182,1749663039631,-245.85690163,0.00021122,2]
[365422184,1749663039641,-500.0,0.00021122,2]
[365422186,1749663039650,-245.0,0.00021122,4]
[365422188,1749663039660,-500.0,0.0002115,2]
[365422190,1749663039669,-151.0,0.0002115,2]
[365422192,1749663039678,-413.09802352,0.0002115,2]
[365422194,1749663039688,-278.56407736,0.00021175,2]
[365422196,1749663039697,-500.0,0.00021175,2]
[365422198,1749663039706,-501.99336344,0.00021177,2]
[365422200,1749663039715,-151.0,0.00021177,2]
[365422202,1749663039725,-169.63702806,0.00021205,2]
[365422204,1749663039734,-1565.88704996,0.00021279,5]
[365422206,1749663039743,-884.73250006,0.00021313,2]
[365422207,1749663039752,-365.19,0.00021359,3]
[365422210,1749663039762,-182.6,0.00021359,3]
[365422211,1749663039772,-547.82,0.00021359,3]
[365422213,1749663039783,-460.0,0.00021369,4]
[365422215,1749663039793,-403.0184,0.00021369,4]
[365422217,1749663039803,-526.25,0.00021369,2]
[365422219,1749663039813,-460.0,0.00021369,4]
[365422221,1749663039822,-539.919,0.00021369,4]
[365422223,1749663039831,-460.0,0.00021369,4]
[365422225,1749663039840,-460.0,0.00021369,4]
[365422227,1749663039850,-460.0,0.00021369,4]
[365422228,1749663039862,-392.43854041,0.00021369,4]
[365422229,1749663039872,-460.0,0.00021369,4]
[365422230,1749663039882,-460.0,0.00021369,4]
[365422231,1749663039892,-460.0,0.00021369,4]
[365422232,1749663039901,-460.0,0.00021369,4]
[365422233,1749663039911,-460.0,0.00021369,4]
[365422234,1749663039921,-1254.46,0.00021369,4]
[365422236,1749663039932,-320.0,0.00021369,4]
[365422238,1749663039942,-460.0,0.00021369,4]
[365422250,1749663040054,-460.0,0.00021369,4]
[365422252,1749663040064,-467.83,0.00021369,4]
[365422254,1749663040074,-1232.68,0.00021369,4]
[365422256,1749663040083,-460.0,0.00021369,4]
[365422258,1749663040092,-460.0,0.00021369,4]
[365422260,1749663040106,-460.0,0.00021369,4]
[365422262,1749663040115,-460.0,0.00021369,4]
[365422264,1749663040125,-460.0,0.00021369,4]
[365422266,1749663040135,-460.0,0.00021369,4]
[365422268,1749663040146,-460.0,0.00021369,4]
[365422269,1749663040155,-460.0,0.00021369,4]
[365422271,1749663040164,-460.0,0.00021369,4]
[365422273,1749663040175,-575.54,0.00021369,4]
[365422275,1749663040184,-460.0,0.00021369,4]
[365422277,1749663040193,-478.38,0.00021369,4]
[365422279,1749663040202,-460.0,0.00021369,4]
[365422281,1749663040212,-460.0,0.00021369,4]
[365422283,1749663040221,-460.0,0.00021369,4]
[365422285,1749663040230,-460.0,0.00021369,4]
[365422287,1749663040239,-1615.48,0.00021369,4]
[365422289,1749663040248,-460.0,0.00021369,4]
[365422291,1749663040258,-460.0,0.00021369,4]
[365422293,1749663040266,-460.0,0.00021369,4]
[365422295,1749663040276,-460.0,0.00021369,4]
[365422297,1749663040286,-460.0,0.00021369,4]
[365422299,1749663040296,-400.0,0.00021369,4]
[365422301,1749663040305,-460.0,0.00021369,4]
[365422303,1749663040314,-460.0,0.00021369,4]
[365422305,1749663040323,-460.0,0.00021369,4]
[365422307,1749663040333,-460.0,0.00021369,4]
[365422309,1749663040343,-1431.3,0.00021369,4]
[365422311,1749663040352,-460.0,0.00021369,4]
[365422313,1749663040362,-1464.09,0.00021369,4]
[365422315,1749663040371,-460.0,0.00021369,4]
[365422317,1749663040381,-460.0,0.00021369,4]
[365422319,1749663040391,-2475.86,0.00021369,4]
[365422321,1749663040400,-460.0,0.00021369,4]
[365422323,1749663040410,-1330.82,0.00021369,4]
[365422325,1749663040419,-460.0,0.00021369,4]
[365422327,1749663040429,-460.0,0.00021369,4]
[365422329,1749663040438,-460.0,0.00021369,4]
[365422331,1749663040448,-460.0,0.00021369,4]
[365422333,1749663040457,-460.0,0.00021369,4]
[365422335,1749663040466,-338.4,0.00021369,2]
[365422337,1749663040476,-460.0,0.00021369,4]
[365422339,1749663040485,-460.0,0.00021369,4]
[365422341,1749663040495,-460.0,0.00021369,4]
[365422343,1749663040504,-460.0,0.00021369,4]
[365422345,1749663040514,-984.08,0.00021369,4]
[365422347,1749663040524,-1255.76,0.00021369,4]
[365422349,1749663040535,-460.0,0.00021369,4]
[365422351,1749663040544,-500.0,0.00021413,2]
[365422353,1749663040554,-151.1861261,0.00021429,2]
[365422355,1749663040565,-500.0,0.00021429,2]
[365422357,1749663040574,-367.65937497,0.00021445,2]
[365422359,1749663040584,-500.0,0.00021445,2]
[365422361,1749663040593,-500.0,0.00021445,2]
[365422364,1749663040603,-256.99038063,0.00021445,2]
[365422365,1749663040612,-500.0,0.00021445,2]
[365422367,1749663040622,-501.44023844,0.00021445,2]
[365422370,1749663040631,-541.08689322,0.00021445,2]
[365422372,1749663040641,-500.0,0.00021445,2]
[365422374,1749663040651,-475.77339658,0.00021445,2]
[365422376,1749663040660,-500.0,0.00021445,2]
[365422378,1749663040669,-1565.88704996,0.00021452,5]
[365422380,1749663040679,-500.0,0.00021461,2]
[365422382,1749663040688,-500.0,0.00021461,2]
[365422384,1749663040697,-800.0,0.0002158,2]
[365422386,1749663040706,-1565.88704996,0.00021624,5]
[365422388,1749663040716,-500.0,0.00021626,2]
[365422390,1749663040725,-500.0,0.00021626,2]
[365422392,1749663040734,-500.0,0.00021626,2]
[365422394,1749663040744,-500.0,0.00021626,2]
[365422396,1749663040753,-508.94531069,0.00021626,2]
[365422397,1749663040762,-500.0,0.0002163,2]
[365422399,1749663040773,-1000.0,0.0002163,2]
[365422401,1749663040783,-460.0,0.00021643,4]
[365422402,1749663040793,-526.25,0.00021643,2]
[365422404,1749663040802,-460.0,0.00021643,4]
[365422406,1749663040811,-460.0,0.00021643,4]
[365422407,1749663040821,-460.0,0.00021643,4]
[365422409,1749663040830,-460.0,0.00021643,4]
[365422411,1749663040840,-460.0,0.00021643,4]
[365422413,1749663040850,-460.0,0.00021643,4]
[365422415,1749663040859,-460.0,0.00021643,4]
[365422416,1749663040867,-460.0,0.00021643,4]
[365422418,1749663040877,-460.0,0.00021643,4]
[365422420,1749663040886,-1254.46,0.00021643,4]
[365422422,1749663040896,-460.0,0.00021643,4]
[365422423,1749663040905,-460.0,0.00021643,4]
[365422425,1749663040914,-467.83,0.00021643,4]
[365422427,1749663040924,-1232.68,0.00021643,4]
[365422429,1749663040934,-460.0,0.00021643,4]
[365422431,1749663040943,-460.0,0.00021643,4]
[365422433,1749663040953,-460.0,0.00021643,4]
[365422434,1749663040962,-460.0,0.00021643,4]
[365422436,1749663040971,-460.0,0.00021643,4]
[365422438,1749663040981,-460.0,0.00021643,4]
[365422440,1749663040990,-460.0,0.00021643,4]
[365422441,1749663041001,-460.0,0.00021643,4]
[365422443,1749663041015,-460.0,0.00021643,4]
[365422445,1749663041026,-575.54,0.00021643,4]
[365422447,1749663041035,-460.0,0.00021643,4]
[365422448,1749663041045,-478.38,0.00021643,4]
[365422450,1749663041053,-460.0,0.00021643,4]
[365422452,1749663041063,-460.0,0.00021643,4]
[365422454,1749663041073,-460.0,0.00021643,4]
[365422455,1749663041082,-1615.48,0.00021643,4]
[365422457,1749663041091,-460.0,0.00021643,4]
[365422459,1749663041105,-460.0,0.00021643,4]
[365422461,1749663041115,-460.0,0.00021643,4]
[365422463,1749663041124,-460.0,0.00021643,4]
[365422465,1749663041133,-460.0,0.00021643,4]
[365422466,1749663041144,-460.0,0.00021643,4]
[365422467,1749663041155,-460.0,0.00021643,4]
[365422468,1749663041163,-460.0,0.00021643,4]
[365422470,1749663041174,-460.0,0.00021643,4]
[365422472,1749663041183,-460.0,0.00021643,4]
[365422474,1749663041193,-1431.3,0.00021643,4]
[365422475,1749663041202,-460.0,0.00021643,4]
[365422477,1749663041211,-460.0,0.00021643,4]
[365422479,1749663041221,-1464.09,0.00021643,4]
[365422480,1749663041230,-460.0,0.00021643,4]
[365422482,1749663041239,-2475.86,0.00021643,4]
[365422484,1749663041248,-460.0,0.00021643,4]
[365422486,1749663041257,-1330.82,0.00021643,4]
[365422488,1749663041270,-460.0,0.00021643,4]
[365422489,1749663041280,-460.0,0.00021643,4]
[365422490,1749663041289,-460.0,0.00021643,4]
[365422491,1749663041299,-460.0,0.00021643,4]
[365422492,1749663041308,-460.0,0.00021643,4]
[365422493,1749663041317,-460.0,0.00021643,4]
[365422494,1749663041327,-460.0,0.00021643,4]
[365422495,1749663041337,-460.0,0.00021643,4]
[365422496,1749663041347,-460.0,0.00021643,4]
[365422497,1749663041358,-1255.76,0.00021643,4]
[365422498,1749663041368,-984.08,0.00021643,4]
[365422499,1749663041378,-460.0,0.00021643,4]
[365422500,1749663041387,-573.4653004,0.00021671,2]
[365422501,1749663041399,-153.0,0.00021671,2]
[365422502,1749663041409,-373.9779763,0.00021671,2]
[365422503,1749663041419,-500.0,0.00021684,2]
[365422504,1749663041429,-471.80539523,0.00021684,2]
[365422505,1749663041439,-274.0,0.00021772,2]
[365422506,1749663041449,-884.73250005,0.00021772,2]
[365422507,1749663041458,-656.0,0.00021791,2]
[365422508,1749663041468,-1565.88704996,0.00021797,6]
[365422509,1749663041478,-500.0,0.00021833,2]
[365422510,1749663041488,-1000.0,0.00021833,2]
[365422511,1749663041497,-1000.0,0.00021833,2]
[365422512,1749663041507,-173.58,0.00021833,2]
[365422513,1749663041518,-656.0,0.00021874,2]
[365422514,1749663041529,-1784.48,0.00021911,2]
[365422515,1749663041539,-500.0,0.00021917,2]
[365422516,1749663041549,-460.0,0.00021917,4]
[365422517,1749663041558,-526.25,0.00021917,2]
[365422518,1749663041568,-460.0,0.00021917,4]
[365422519,1749663041578,-460.0,0.00021917,4]
[365422520,1749663041587,-460.0,0.00021917,4]
[365422521,1749663041596,-460.0,0.00021917,4]
[365422522,1749663041606,-1254.46,0.00021917,4]
[365422523,1749663041616,-460.0,0.00021917,4]
[365422524,1749663041625,-467.83,0.00021917,4]
[365422525,1749663041634,-1232.68,0.00021917,4]
[365422526,1749663041644,-460.0,0.00021917,4]
[365422527,1749663041653,-460.0,0.00021917,4]
[365422528,1749663041662,-460.0,0.00021917,4]
[365422529,1749663041671,-460.0,0.00021917,4]
[365422530,1749663041680,-460.0,0.00021917,4]
[365422531,1749663041689,-575.54,0.00021917,4]
[365422532,1749663041698,-460.0,0.00021917,4]
[365422533,1749663041707,-478.38,0.00021917,4]
[365422534,1749663041716,-460.0,0.00021917,4]
[365422535,1749663041726,-1615.48,0.00021917,4]
[365422536,1749663041735,-418.46,0.00021917,4]
[365422537,1749663041744,-460.0,0.00021917,4]
[365422538,1749663041754,-460.0,0.00021917,4]
[365422539,1749663041763,-460.0,0.00021917,4]
[365422540,1749663041772,-1431.3,0.00021917,4]
[365422541,1749663041782,-460.0,0.00021917,4]
[365422542,1749663041791,-460.0,0.00021917,4]
[365422543,1749663041801,-1464.09,0.00021917,4]
[365422544,1749663041810,-460.0,0.00021917,4]
[365422545,1749663041820,-2475.86,0.00021917,4]
[365422546,1749663041830,-460.0,0.00021917,4]
[365422547,1749663041840,-1330.82,0.00021917,4]
[365422548,1749663041849,-460.0,0.00021917,4]
[365422549,1749663041859,-460.0,0.00021917,4]
[365422550,1749663041868,-460.0,0.00021917,4]
[365422551,1749663041878,-460.0,0.00021917,4]
[365422552,1749663041887,-460.0,0.00021917,4]
[365422553,1749663041896,-1255.76,0.00021917,4]
[365422554,1749663041906,-984.08,0.00021917,4]
[365422555,1749663041916,-160.0,0.00021938,3]
[365422556,1749663041925,-160.0,0.00021943,2]
[365422557,1749663041935,-11860.25191276,0.00021943,2]
[365422558,1749663041945,-160.0,0.00021943,2]
[365422559,1749663041954,-213.16534259,0.00021943,2]
[365422560,1749663041964,-835.03886221,0.00021943,2]